Cogmind - Beta 13 @@@ ROGUE MODE // 2024.04.02 @ 20:52:10 Player: DoubleCorvid Result: Destroyed by Y-45 Defender with Heavy Assault Rifle Performance ------------- Evolutions (2) 1000 Regions Visited (4) 800 Robots Destroyed (71) 355 Value Destroyed (2213) 2213 Prototype IDs (7) 140 Alien Tech Used (0) 0 Bonus (204) 204 TOTAL SCORE: 4712 Bonus ------- High Alert Combat Kills 204 Cogmind --------- Core Integrity 0/550 Matter 300/300 Energy 99/100 System Corruption 2% Temperature Cool (9) Movement Core (200) Ox3 Location -8/Storage Parts ------- > --- POWER (2) -------- (None) > --- PROPULSION (3) --- (None) > --- UTILITY (2) ------ Medium Storage Unit > --- WEAPON (4) ------- (None) > --- INVENTORY (10) --- Nuclear Core Nuclear Core Light Treads Light Treads Compact Wheel Large Matter Pod (141) Tractor Beam Peak State ------------ > --- POWER ------------ Light Nuclear Core Light Nuclear Core > --- PROPULSION ------- Wheel Compact Wheel Compact Wheel > --- UTILITY ---------- Medium Storage Unit Hardened Medium Armor Plating > --- WEAPON ----------- Ion Cannon Assault Rifle Shotgun Minigun > --- INVENTORY -------- Improved Ion Engine Improved Ion Engine Wheel Compact Wheel Tractor Beam Beam Rifle Assault Rifle Light Cannon [Rating: 23] Favorites ----------- Power Improved Ion Engine Engine Improved Ion Engine Power Core Light Nuclear Core Propulsion Wheel Treads Advanced Treads Leg Aluminum Leg Wheel Wheel Flight Unit Improved Flight Unit Utility Medium Storage Unit Device Heat Sink Storage Medium Storage Unit Protection Hardened Medium Armor Plating Weapon Light Assault Rifle Energy Gun Beam Rifle Energy Cannon Advanced Beam Cannon Ballistic Gun Light Assault Rifle Ballistic Cannon Light Cannon Launcher EMP Blaster Build | -11 -10 -9 -8 -8 ------- Run | Yrd Mat Mat Mat Sto Slots Evolved 4 | . . 2 2 . Power 1 | . . . 1 . Propulsion 1 | . . . 1 . Utility . | . . . . . Weapon 2 | . . 2 . . Parts Attached 64 | 6 3 23 23 9 Power 10 | 1 . 3 4 2 Engine 6 | 1 . 3 2 . Core 4 | . . . 2 2 Reactor . | . . . . . Propulsion 19 | 2 2 4 7 4 Treads 3 | . . . . 3 Leg 2 | . 2 . . . Wheel 13 | 2 . 3 7 1 Hover . | . . . . . Flight 1 | . . 1 . . Utility 4 | 1 . 2 1 . Device 1 | . . 1 . . Storage 2 | 1 . 1 . . Processor . | . . . . . Hackware . | . . . . . Protection 1 | . . . 1 . Artifact . | . . . . . Weapon 31 | 2 1 14 11 3 Energy Gun 6 | 1 1 1 2 1 Energy Cannon 4 | . . 3 1 . Ballistic Gun 18 | 1 . 8 7 2 Ballistic Cannon 2 | . . 1 1 . Launcher 1 | . . 1 . . Special Weapon . | . . . . . Impact Weapon . | . . . . . Slashing Weapon . | . . . . . Piercing Weapon . | . . . . . Special Melee Weapon . | . . . . . Unidentified Prototypes 3 | . . 3 . . Parts Lost 26 | . 2 . 10 14 Power 4 | . . . 1 3 Propulsion 9 | . 1 . 3 5 Utility 2 | . . . 1 1 Weapon 11 | . 1 . 5 5 Highest Loss Streak 4 | . 1 . 2 4 To Critical Strikes . | . . . . . Average Slot Usage (%) 89 | . 79 96 91 75 Engine 8 | . 14 11 9 . Core 5 | . . . 8 15 Treads 1 | . . . . 10 Leg 3 | . 16 3 . . Wheel 17 | . 8 18 23 11 Device 4 | . . 9 3 . Storage 10 | . 14 11 9 9 Protection 1 | . . . 4 3 Energy Gun 3 | . 12 . 4 4 Energy Cannon 7 | . . 10 6 6 Ballistic Gun 19 | . 14 25 18 10 Ballistic Cannon 3 | . . 5 1 3 Launcher 1 | . . . 2 . Naked Turns . | . . . . . Heaviest Build 42 | 14 14 30 42 42 Greatest Support 64 | 20 20 24 48 64 Greatest Overweight (x) 5 | . 1 1 1 5 Average Overweight (x) . | . . . . . Largest Inventory Capacity 10 | 8 8 10 10 10 Average Capacity 9 | 6 8 8 10 10 Most Carried 10 | 5 6 10 10 9 Average Carried 6 | 3 3 6 7 6 Final Capacity 10 | 8 8 10 10 10 Final Carried 10 | 4 3 10 7 7 Class Distribution -------------------- 47% | Gunner 20% | Scavenger-Tank 20% | Mutant 11% | Scavenger-Gunner Dominant Class ---------------- Mutant | -10/Materials Gunner | -9/Materials Scavenger-Tank | -8/Materials Mutant | -8/Storage Resources | -11 -10 -9 -8 -8 ----------- Run | Yrd Mat Mat Mat Sto Matter Collected 1984 | 221 58 552 695 458 Remotely . | . . . . . Salvage Created 3350 | . 58 997 1740 555 Parts 162 | . 3 61 79 19 Haulers Intercepted 2 | . . 2 . . Recyclers Shooed 6 | . 1 2 3 . Parts Field Recycled . | . . . . . Retrieved Matter . | . . . . . Parts Self-Destructed . | . . . . . Prevented . | . . . . . Kills | -11 -10 -9 -8 -8 ------- Run | Yrd Mat Mat Mat Sto Combat Hostiles Destroyed 49 | . 3 19 19 8 Guns 31 | . 3 10 13 5 Cannons 16 | . . 8 5 3 AOE 2 | . . 1 1 . Classes Destroyed 10 | . 1 5 4 . Builder 5 | . . . 5 . Hauler 2 | . . 2 . . Recycler 10 | . . 3 6 1 Mechanic 2 | . . . 1 1 Watcher 3 | . . . 3 . Swarmer 7 | . 3 4 . . Grunt 28 | . . 8 13 7 Brawler 1 | . . 1 . . Sentry 11 | . . 6 4 1 Specialist 2 | . . . 2 . Best Kill Streak 11 | . 3 7 11 2 Combat Bots Only 7 | . 3 7 3 2 Max Kills in Single Turn 3 | . 1 1 3 1 Gunslinging . | . . . . . Exploded 1 | . . 1 1 . Melee . | . . . . . Uniques/NPCs Destroyed . | . . . . . Combat | -11 -10 -9 -8 -8 -------- Run | Yrd Mat Mat Mat Sto Hostile Shots Fired 365 | . 58 66 119 122 Missed 108 | . 20 21 36 31 Damage Taken 3908 | 3 380 635 1421 1469 Core 637 | . 28 47 139 423 Absorbed by Shields . | . . . . . Regen/Repaired (Parts) 34 | . 34 . . . Core Remaining (%) 92 | 100 88 88 . . Volleys Fired 145 | . 6 49 57 33 Largest 4 | . 2 4 4 4 Hottest 179 | . 60 179 172 171 Shots Fired 487 | . 11 193 198 85 Gun 317 | . 11 115 133 58 Cannon 151 | . . 77 47 27 Launcher 19 | . . 1 18 . Special . | . . . . . Kinetic 315 | . 5 144 118 48 Thermal 147 | . . 48 62 37 Explosive . | . . . . . Electromagnetic 25 | . 6 1 18 . Robot Hit Streak 13 | . 4 13 13 8 Robot Miss Streak 5 | . 2 5 3 5 Penetration Max . | . . . . . Secondary Targets 2 | . 1 . 1 . Max Gunslinging Chain 1 | . 1 . 1 . Shots Hit Robots 278 | . 6 114 107 51 Core Hits 133 | . 3 39 66 25 Critical Kills 1 | . . . 1 . Critical Parts Destroyed . | . . . . . Critical Strikes 6 | . . . 3 3 Burn 4 | . . . 2 2 Destroy 1 | . . . 1 . Blast 1 | . . . . 1 Melee Attacks . | . . . . . Impact . | . . . . . Slashing . | . . . . . Piercing . | . . . . . Sneak Attacks . | . . . . . Combat Hostiles . | . . . . . Follow-up Attacks . | . . . . . Damage Inflicted 5057 | 7 85 1661 2505 799 Guns 2456 | . 82 705 1204 465 Cannons 1666 | . . 791 541 334 Explosions 864 | . . 119 745 . Melee . | . . . . . Ramming 71 | 7 3 46 15 . Kinetic 2415 | . 38 940 1054 383 Thermal 2020 | . . 675 929 416 Explosive . | . . . . . Electromagnetic 551 | . 44 . 507 . Impact . | . . . . . Slashing . | . . . . . Piercing . | . . . . . Highest Corruption 3 | 2 2 3 2 2 Average Corruption 2 | 2 2 3 1 2 Corruption Purged . | . . . . . Corruption Blocked . | . . . . . Effects 33 | 1 5 13 9 5 Message Errors 8 | . 3 2 2 1 Matter Fused 6 | 1 . 2 2 1 Heat Flow Errors 2 | . . 1 1 . Energy Discharges 4 | . . 1 2 1 Parts Fused 1 | . . 1 . . Data Loss (minor) 4 | . . 3 . 1 Data Loss (major) 2 | . 1 1 . . Misfires 1 | . . . . 1 Alerts 1 | . . 1 . . Weapon Failures 4 | . 1 1 2 . Overload Shots . | . . . . . Overflow Damage 61 | . . 2 59 . Projectiles 13 | . . 2 11 . Explosions 48 | . . . 48 . Melee . | . . . . . Knockbacks 7 | . . 3 3 1 Impact 3 | . . 2 1 . Kinetic 4 | . . 1 2 1 Secondary . | . . . . . Self-Inflicted Damage 260 | 3 . 105 152 . Shots 10 | . . 1 9 . Rammed 8 | 1 . 5 2 . Targets Rammed 9 | 1 1 5 2 . Kicked 1 | . 1 . . . Crushed . | . . . . . Highest Temperature 632 | . 9 376 474 632 Average Temperature 164 | . 9 88 169 228 Received Heat Transfer 1503 | . 144 252 459 648 Effects 38 | . . 1 13 24 Shutdowns 9 | . . . 5 4 Energy Bleed 8 | . . . 1 7 Interference 8 | . . . 4 4 Matter Decay 4 | . . . . 4 Short Circuit 2 | . . 1 . 1 Damage (minor) 3 | . . . . 3 Damage (major) 3 | . . . 3 . Damage (core) 1 | . . . . 1 Siege Activations . | . . . . . Robots Corrupted . | . . . . . Combat Hostiles . | . . . . . Parts Fried 1 | . . . 1 . Impact Corruptions . | . . . . . Robots Melted . | . . . . . Combat Hostiles . | . . . . . Parts Melted 2 | . . . 1 1 Heat Transferred 3915 | . . 1099 1817 999 Parts Sabotaged . | . . . . . Parts Stolen . | . . . . . Parts Stripped . | . . . . . Power Chain Reactions 4 | . . . 4 . Alert | -11 -10 -9 -8 -8 ------- Run | Yrd Mat Mat Mat Sto Peak Influence 620 | . 112 499 620 432 Initial 206 | . . 42 189 206 Average 279 | . 64 220 437 311 Maximum Alert Level 2 | . . 2 2 2 Low Security (%) 37 | 100 100 52 9 . Level 1 34 | . . 33 24 81 Level 2 28 | . . 14 66 17 Level 3 . | . . . . . Level 4 . | . . . . . Level 5 . | . . . . . High Security . | . . . . . Max Security . | . . . . . Squads Dispatched 15 | . 2 3 5 5 Investigation 4 | . . 2 . 2 Extermination . | . . . . . Reinforcement 7 | . 2 1 4 . Assault . | . . . . . Garrison 4 | . . . 1 3 Intercept . | . . . . . Searches Triggered . | . . . . . Construction Impeded 1 | . . . 1 . Haulers Reinforced . | . . . . . Active Scanning Responses . | . . . . . Cargo Convoy Interrupts . | . . . . . Stealth | -11 -10 -9 -8 -8 --------- Run | Yrd Mat Mat Mat Sto Distress Signals 5 | . 1 1 2 1 Communications Jammed . | . . . . . Distress Signals . | . . . . . Times Spotted 80 | . 11 25 30 14 Peak Tracking Total 6 | . 6 5 4 4 Tactical Retreats 5 | . . 1 3 1 Traps | -11 -10 -9 -8 -8 ------- Run | Yrd Mat Mat Mat Sto Traps Triggered 1 | . . . . 1 Indirectly . | . . . . . Trap Hack Attempts . | . . . . . Triggered . | . . . . . Disarmed . | . . . . . Reprogrammed . | . . . . . Reused . | . . . . . Traps Extracted . | . . . . . Installed . | . . . . . Triggered . | . . . . . Machines | -11 -10 -9 -8 -8 ---------- Run | Yrd Mat Mat Mat Sto Machines Disabled 8 | . . 3 4 1 Max in Single Turn 1 | . . 1 1 1 Machines Repaired . | . . . . . Machines Dismantled . | . . . . . Machines Sabotaged . | . . . . . Overloaded Fab Kills . | . . . . . Hacking | -11 -10 -9 -8 -8 --------- Run | Yrd Mat Mat Mat Sto Machines Accessed 10 | . 3 3 1 3 Terminals 7 | . 2 2 . 3 Fabricators . | . . . . . Repair Stations 1 | . 1 . . . Recycling Units 1 | . . . 1 . Scanalyzers 1 | . . 1 . . Garrison Access . | . . . . . Total Hacks 39 | . 12 12 1 14 Successful 21 | . 6 8 1 6 Failed 18 | . 6 4 . 8 Catastrophic 3 | . . 1 . 2 Database Lockouts . | . . . . . Manual 1 | . . 1 . . Terminals 32 | . 10 8 . 14 Fabricators . | . . . . . Repair Stations 2 | . 2 . . . Recycling Units 1 | . . . 1 . Scanalyzers 4 | . . 4 . . Garrison Access . | . . . . . Terminal Hacks 14 | . 4 4 . 6 Record 5 | . 2 2 . 1 Robot Schematic 1 | . . . . 1 Prototype ID Bank 2 | . 1 . . 1 Emergency Access Points 1 | . . 1 . . Alert Level 2 | . . 1 . 1 Dispatch Records 1 | . . . . 1 Transport Status 1 | . . . . 1 Zone Layout 1 | . 1 . . . Fabricator Hacks . | . . . . . Repair Station Hacks 2 | . 2 . . . Scan Component 1 | . 1 . . . Repair 1 | . 1 . . . Recycling Unit Hacks 1 | . . . 1 . Report Inventory 1 | . . . 1 . Scanalyzer 4 | . . 4 . . Insert Component 2 | . . 2 . . Analyze 2 | . . 2 . . Garrison Access Hacks . | . . . . . Unauthorized Hacks . | . . . . . Terminals . | . . . . . Fabricators . | . . . . . Repair Stations . | . . . . . Recycling Units . | . . . . . Scanalyzers . | . . . . . Garrison Access . | . . . . . Data Cores Recovered . | . . . . . Used . | . . . . . Hacking Detections 8 | . 2 3 . 3 Full Trace Events 6 | . 1 3 . 2 Feedback Events . | . . . . . Feedback Blocked . | . . . . . Robot Schematics Acquired 1 | . . . . 1 Robots Built . | . . . . . Authchips . | . . . . . Time . | . . . . . Total Robot Build Rating . | . . . . . Part Schematics Acquired 2 | . . 2 . . Parts Built . | . . . . . Authchips . | . . . . . Time . | . . . . . Total Part Build Rating . | . . . . . Parts Repaired 1 | . 1 . . . Time 26 | . 26 . . . Parts Recycled . | . . . . . Recycled Matter . | . . . . . Retrieved Matter . | . . . . . Retrieved Components . | . . . . . Parts Scanalyzed 2 | . . 2 . . Part Schematics Acquired 2 | . . 2 . . Parts Damaged 1 | . . 1 . . Bothacking | -11 -10 -9 -8 -8 ------------ Run | Yrd Mat Mat Mat Sto Used RIF Installer . | . . . . . Robots Hacked . | . . . . . Non-combat . | . . . . . Combat . | . . . . . Robot Hacks Applied . | . . . . . Relay Couplers Released . | . . . . . Fabnet Peak Effective % . | . . . . . Robots Rewired . | . . . . . Allies Hacked . | . . . . . Hacks Repelled . | . . . . . Allies | -11 -10 -9 -8 -8 -------- Run | Yrd Mat Mat Mat Sto Total Allies . | . . . . . Largest Group . | . . . . . Highest-Rated Group . | . . . . . Highest-Rated Ally . | . . . . . Total Orders . | . . . . . Ally Attacks . | . . . . . Total Damage . | . . . . . Kills . | . . . . . Allies Corrupted . | . . . . . Allies Melted . | . . . . . Intel | -11 -10 -9 -8 -8 ------- Run | Yrd Mat Mat Mat Sto Robot Analysis Total . | . . . . . Derelict Logs Recovered . | . . . . . Drone Launches . | . . . . . Drone Recoveries . | . . . . . Exploration | -11 -10 -9 -8 -8 ------------- Run | Yrd Mat Mat Mat Sto Turns Passed 2638 | 68 322 966 817 465 Spaces Moved 1869 | 72 247 718 560 272 Core 26 | 22 . . . 4 Treads 108 | . . . . 108 Legs 262 | . 157 105 . . Wheels 1473 | 50 90 613 560 160 Hover . | . . . . . Flight . | . . . . . Fastest Speed 50 | 50 80 85 86 86 Average Speed 103 | 70 107 100 97 125 Slowest Speed 300 | 80 120 120 105 300 Overloaded Moves . | . . . . . Propulsion Burnouts . | . . . . . Robots Hopped . | . . . . . Cave-ins Triggered . | . . . . . Exploration Rate (%) 27 | 4 27 37 37 34 Regions Visited 4 Branch Regions 1 Pre-discovered Areas . | . . . . . Known Exits Taken . | . . . . . Unknown Exits Taken 4 | 1 1 1 1 . Scrap Searched . | . . . . . Spaces Dug . | . . . . . Terrain Destroyed 48 | . . 38 10 . Melee . | . . . . . Projectile 4 | . . . 4 . AOE 44 | . . 38 6 . Terrain Rammed . | . . . . . Walls Destroyed . | . . . . . Machines Disabled . | . . . . . Actions | -11 -10 -9 -8 -8 --------- Run | Yrd Mat Mat Mat Sto Total 2277 | 88 290 861 704 334 Wait 101 | . 31 31 36 3 Move 1865 | 71 246 717 559 272 Hop . | . . . . . Pick Up 64 | 10 2 23 18 11 Fast Attach . | . . . . . Attach 45 | 6 3 13 16 7 Detach 1 | . . 1 . . Swap 19 | . . 10 7 2 Drop 28 | . 1 12 9 6 Fire 145 | . 6 49 57 33 Melee . | . . . . . Ram 8 | 1 . 5 2 . Kick 1 | . 1 . . . Crush . | . . . . . Escape Stasis . | . . . . . Rewire . | . . . . . Trap . | . . . . . Miscellaneous . | . . . . . Route ------- -11/Scrapyard -10/Materials (discovered 2 exits: *Mat x2) -9/Materials -8/Materials -8/Storage History --------- Turn | Location | Event 6 | -11/Scrapyard | Discovered new exit (range 16) 69 | -11/Scrapyard | Entered Materials 198 | -10/Materials | Repaired EM Pulse Gun 309 | -10/Materials | Discovered new exit (range 17) 317 | -10/Materials | Build established: Mutant 317 | -10/Materials | Discovered new exit (range 15) 391 | -10/Materials | Entered another Materials area 391 | -9/Materials | Evolved 2 slots: Weapon x2 693 | -9/Materials | Build established: Gunner 1221 | -9/Materials | Destroyed 7 combat bots 1226 | -9/Materials | Discovered new exit (range 15) 1357 | -9/Materials | Entered another Materials area 1357 | -8/Materials | Evolved 2 slots: Power x1, Propulsion x1 1972 | -8/Materials | Garrison activated, responded to threat 2071 | -8/Materials | Build established: Scavenger-Tank 2151 | -8/Materials | Discovered new exit (range 5) 2174 | -8/Materials | Entered Storage 2333 | -8/Storage | Garrison activated, responded to threat 2403 | -8/Storage | Lost 4 parts (1p1n1u1w) 2407 | -8/Storage | Core integrity fell below 50% 2632 | -8/Storage | Core integrity fell below 20% 2639 | -8/Storage | Destroyed by Y-45 Defender with Heavy Assault Rifle Last Messages --------------- 02508_ Power failure, Nuclear Core shutdown. 02510_ Acquired 6 matter. 02512_ Acquired 46 matter. 02513_ Acquired 97 matter. 02516_ Overheating: Energy bleed (-79). 02526_ Ion Cannon destroyed. 02532_ K-01 Serf collects debris. 02532_ Beam Rifle destroyed. 02535_ K-01 Serf collects debris. 02541_ Critical hit (Burn: +37). 02543_ K-01 Serf collects debris. 02552_ K-01 Serf cleans the Transfer Shaft. 02562_ K-01 Serf collects debris. 02573_ Nuclear Core destroyed. 02576_ Critical hit (Burn: +37). 02590_ System corrupted: Energy discharge (-88). 02607_ Critical hit (Burn: +37). 02629_ Adv. Treads destroyed. 02631_ Lgt. Treads destroyed. 02635_ Nuclear Core destroyed. Map ----- +----------------------------------------------------+ | ???????????????????????????????????????????? | | ???????????????????????????????????????????? | | ???????????????????????????????????????????? | | ???????????????????????????????????????????? | | ???????????????????????????????????????????? | | ???????????????????????????????????????????? | | ???????????????????????????????????????????# | | ???????????????????????????????????????????# | | ???????????????????????????????????????????# | | ???????????????????????????????????????????# | | ???????????????????????????????????????????# | | ?????????????????????????????????#######???# | | ???????????????????????????????############# | | ???????????????????????????????# =! | | ???????????????????????????##### ^ | | ???????????????????????????# ! ^** | | ???????????????????##??????# * | | ??????????????????# ??????# | | ??????????????????# ??????# | | ??????????????????# "??????# =% | | ??????????????????# "??????+ ############# | | ??????????????????# "??????# ????????????? | | ??????????????????# ""?????# ?????????????? | | ??????????????????# ""????# ?????????????? | | ??????????????????# """" # ??????????????? | | ??????????????????#@ #???????????????? | | ????????????????###;########???????????????? | | ????????????????# #??????????????????### | | ????????????????# #??????????????????# | | ????????????????# Y #?????? #?????????# | | ????????????????# ###### #?????????# | | ????????????????# ##+######## | | ????????????????## ^ | | ?????????????????# ##??# | | ?????????????????# #???#^ ^ | | ?????????????????# ########+######^ | | ?????????????????# #???# ## """ | | ?????????????????# #???# ## """ | | ?????????????????#YY #???# ## """ | | ?????????????????# #???# ## | | ?????????????????# #???# ## | | ??????????######## #???# ## """ | | ??????????# #???# ##^ """ | | ??????????# #???# ## """ | | ??????????# #???# / | | ?????????#######/#######?##+#####+# | | ?????????# #### ##### | | ?????????# """ """ """ / | | ?????????# """ """ """ ##################### | | ?????????# """ """ """ #???????????????????? | +----------------------------------------------------+ Best States ------------- Heat Dissipation 41 Energy Generation 23 Energy Capacity 430 Matter Stores 300 Matter Capacity 300 Sight Range 16 Terrain Scan Density 10 Armor Coverage 225 Evasion (%) 55 Recoil Reduction 3 Item Schematics ----------------- Arm. Wheel | -9/Materials | Scanalyzed Adv. Beam Cannon | -9/Materials | Scanalyzed Robot Schematics ------------------ O-24 Administrator | -8/Storage | Hacked Fabricated ------------ Nothing Alien Tech Used ----------------- None Achievements -------------- None Challenges ------------ None Game ------ Seed DeuteriumExplosiveMediator Manual? 0 Play Time 00:37:47 Cumulative 5.5 hours Start 2024.04.02 @ 20:15:31 End 2024.04.02 @ 20:52:10 Sessions 1 Manual Loads 0 Difficulty Rogue Special Mode None Game No. 6 Rogue 3 Adventurer 3 Explorer 0 Win Type - Total 0 Types 0/0/0/0/0/0/0/0/0 Lore% 7 Gallery% 11 Achievement% 12 Wizard Run 0 Options --------- Layout 1 ASCII 0 Keyboard 0 Movement Arrows Keybinds 0 Fullscreen 1 Font 24/Swanston Map View 50x35 Zoom Use 0% Tactical HUD 1 Map Filters NONE Filters NONE Steam 1 RUN: af7ba81e-e856-4894-9d58-32a503a49730